[Event "*** Titled Tuesday Blitz"]
[Site "Chess.com"]
[Date "2020.12.29"]
[Round "10"]
[White "ckgchess"]
[Black "Titus369"]
[Result "1-0"]
[WhiteElo "2769"]
[BlackElo "2542"]
[TimeControl "180+1"]
[EndTime "11:56:39 PST"]
[Termination "ckgchess won by checkmate"]

1. e4 {[%clk 0:03:00.9]} 1... c5 {[%clk 0:02:59.6]} 2. c3 {[%clk 0:03:00.9]}
2... g6 {[%clk 0:02:58.5]} 3. d4 {[%clk 0:03:01.2]} 3... cxd4 {[%clk 0:02:59.4]}
4. cxd4 {[%clk 0:02:58.6]} 4... d5 {[%clk 0:02:59.4]} 5. e5 {[%clk 0:02:58.7]}
5... Bg7 {[%clk 0:02:58.1]} 6. Nf3 {[%clk 0:02:59.1]} 6... Nh6 {[%clk
0:02:58.4]} 7. h3 {[%clk 0:02:48]} 7... O-O {[%clk 0:02:56.9]} 8. Be2 {[%clk
0:02:47.3]} 8... f6 {[%clk 0:02:57]} 9. O-O {[%clk 0:02:43.2]} 9... Nf7 {[%clk
0:02:55.3]} 10. Nc3 {[%clk 0:02:42.4]} 10... Nc6 {[%clk 0:02:49.6]} 11. exf6
{[%clk 0:02:24.8]} 11... Bxf6 {[%clk 0:02:46.6]} 12. Qb3 {[%clk 0:02:22.9]}
12... e6 {[%clk 0:02:44.1]} 13. Be3 {[%clk 0:02:20]} 13... Nd6 {[%clk
0:02:40.1]} 14. Rac1 {[%clk 0:02:10.3]} 14... a6 {[%clk 0:02:34.2]} 15. Na4
{[%clk 0:01:47.2]} 15... Bd7 {[%clk 0:01:46.6]} 16. Nc5 {[%clk 0:01:33.1]} 16...
Na5 {[%clk 0:01:33.7]} 17. Qb4 {[%clk 0:01:32.1]} 17... Nc6 {[%clk 0:01:13.1]}
18. Qa3 {[%clk 0:01:29.3]} 18... Re8 {[%clk 0:01:01]} 19. Rfe1 {[%clk
0:01:26.7]} 19... Qe7 {[%clk 0:00:52.6]} 20. Bf4 {[%clk 0:01:07.6]} 20... Nb5
{[%clk 0:00:48.1]} 21. Bxb5 {[%clk 0:01:01.3]} 21... axb5 {[%clk 0:00:49]} 22.
Qd3 {[%clk 0:01:01.2]} 22... Nb4 {[%clk 0:00:44]} 23. Qb3 {[%clk 0:01:01.1]}
23... Nc6 {[%clk 0:00:33.1]} 24. Nxd7 {[%clk 0:00:48.9]} 24... Qxd7 {[%clk
0:00:32.5]} 25. Be5 {[%clk 0:00:39.6]} 25... Bxe5 {[%clk 0:00:29.5]} 26. Nxe5
{[%clk 0:00:40.5]} 26... Nxe5 {[%clk 0:00:28.8]} 27. Rxe5 {[%clk 0:00:41.4]}
27... Rac8 {[%clk 0:00:28.7]} 28. Rce1 {[%clk 0:00:41.9]} 28... Rc6 {[%clk
0:00:27.1]} 29. Qxb5 {[%clk 0:00:39]} 29... Qf7 {[%clk 0:00:22.8]} 30. Qb3
{[%clk 0:00:21.6]} 30... Rec8 {[%clk 0:00:21]} 31. Qe3 {[%clk 0:00:20.4]} 31...
Rc2 {[%clk 0:00:11.7]} 32. Rxe6 {[%clk 0:00:19.5]} 32... Rxb2 {[%clk 0:00:12]}
33. Re7 {[%clk 0:00:18.9]} 33... Qf6 {[%clk 0:00:10.9]} 34. Re6 {[%clk
0:00:13.6]} 34... Qf7 {[%clk 0:00:10.6]} 35. Re7 {[%clk 0:00:13.1]} 35... Qf6
{[%clk 0:00:10.8]} 36. a4 {[%clk 0:00:13.7]} 36... Rf8 {[%clk 0:00:09.6]} 37. f3
{[%clk 0:00:12.3]} 37... Rb4 {[%clk 0:00:07.6]} 38. Qe6+ {[%clk 0:00:11.3]}
38... Qxe6 {[%clk 0:00:07.8]} 39. R1xe6 {[%clk 0:00:12.2]} 39... Rf7 {[%clk
0:00:06.3]} 40. Re8+ {[%clk 0:00:08.3]} 40... Kg7 {[%clk 0:00:05.5]} 41. a5
{[%clk 0:00:07.1]} 41... Rxd4 {[%clk 0:00:05.3]} 42. Rd6 {[%clk 0:00:07.4]}
42... Rd1+ {[%clk 0:00:04.6]} 43. Kh2 {[%clk 0:00:07.4]} 43... d4 {[%clk
0:00:05]} 44. Red8 {[%clk 0:00:07.5]} 44... Ra1 {[%clk 0:00:04.3]} 45. Rd5
{[%clk 0:00:05.3]} 45... Ra2 {[%clk 0:00:04.7]} 46. Kg3 {[%clk 0:00:04.9]} 46...
h5 {[%clk 0:00:04.7]} 47. h4 {[%clk 0:00:04.2]} 47... d3 {[%clk 0:00:04.6]} 48.
R8d6 {[%clk 0:00:04.6]} 48... d2 {[%clk 0:00:04.5]} 49. Rg5 {[%clk 0:00:05.1]}
49... Kh7 {[%clk 0:00:04.2]} 50. Rdd5 {[%clk 0:00:02.8]} 50... Rf5 {[%clk
0:00:02.8]} 51. Rgxf5 {[%clk 0:00:02.8]} 51... gxf5 {[%clk 0:00:03.7]} 52. Kf4
{[%clk 0:00:02.5]} 52... Kg6 {[%clk 0:00:03.7]} 53. Rd7 {[%clk 0:00:03.4]} 53...
Ra4+ {[%clk 0:00:02.9]} 54. Ke3 {[%clk 0:00:03.3]} 54... Rxa5 {[%clk 0:00:03.8]}
55. Rxd2 {[%clk 0:00:03.8]} 55... Ra3+ {[%clk 0:00:04.2]} 56. Kf4 {[%clk
0:00:04.5]} 56... Ra4+ {[%clk 0:00:04.7]} 57. Ke5 {[%clk 0:00:05]} 57... Ra5+
{[%clk 0:00:05]} 58. Kf4 {[%clk 0:00:02.6]} 58... Ra4+ {[%clk 0:00:05.4]} 59.
Ke5 {[%clk 0:00:03.3]} 59... Rxh4 {[%clk 0:00:05.3]} 60. Rd6+ {[%clk 0:00:03.3]}
60... Kg5 {[%clk 0:00:03.4]} 61. Rd7 {[%clk 0:00:03.9]} 61... Rb4 {[%clk
0:00:02.9]} 62. Rg7+ {[%clk 0:00:04.4]} 62... Kh4 {[%clk 0:00:03.1]} 63. Kxf5
{[%clk 0:00:04.2]} 63... Rb2 {[%clk 0:00:03.1]} 64. g3+ {[%clk 0:00:03.6]} 64...
Kh3 {[%clk 0:00:03.1]} 65. f4 {[%clk 0:00:03.7]} 65... Rb5+ {[%clk 0:00:03.6]}
66. Ke4 {[%clk 0:00:03.8]} 66... Rb4+ {[%clk 0:00:03.7]} 67. Ke5 {[%clk
0:00:04.2]} 67... Rb3 {[%clk 0:00:04.1]} 68. f5 {[%clk 0:00:04.3]} 68... Rxg3
{[%clk 0:00:01.7]} 69. Rxg3+ {[%clk 0:00:05.2]} 69... Kxg3 {[%clk 0:00:02.6]}
70. f6 {[%clk 0:00:06.1]} 70... h4 {[%clk 0:00:03.5]} 71. f7 {[%clk 0:00:06.9]}
71... h3 {[%clk 0:00:04.4]} 72. f8=Q {[%clk 0:00:07.8]} 72... Kg2 {[%clk
0:00:05.1]} 73. Qg7+ {[%clk 0:00:07.4]} 73... Kh1 {[%clk 0:00:05.2]} 74. Qg3
{[%clk 0:00:06.6]} 74... h2 {[%clk 0:00:05.3]} 75. Qf2 {[%clk 0:00:07]} 75... b5
{[%clk 0:00:05.3]} 76. Qf1# {[%clk 0:00:07.9]} 1-0

[Event "*** Titled Tuesday Blitz"]
[Site "Chess.com"]
[Date "2020.12.29"]
[Round "10"]
[White "theturtlemoves"]
[Black "Nadeev_Sergey"]
[Result "1/2-1/2"]
[WhiteElo "2379"]
[BlackElo "2471"]
[TimeControl "180+1"]
[EndTime "11:56:41 PST"]
[Termination "Game drawn by repetition"]

1. e4 {[%clk 0:03:00.9]} 1... e5 {[%clk 0:02:58.2]} 2. Nf3 {[%clk 0:02:59.9]}
2... Nc6 {[%clk 0:02:58.6]} 3. Bb5 {[%clk 0:02:59.4]} 3... a6 {[%clk 0:02:57.9]}
4. Ba4 {[%clk 0:02:59.9]} 4... Nf6 {[%clk 0:02:57.4]} 5. O-O {[%clk 0:02:59.8]}
5... Be7 {[%clk 0:02:56.7]} 6. Re1 {[%clk 0:02:59.7]} 6... b5 {[%clk 0:02:57.2]}
7. Bb3 {[%clk 0:02:59.8]} 7... O-O {[%clk 0:02:58]} 8. c3 {[%clk 0:03:00.4]}
8... d5 {[%clk 0:02:57.2]} 9. exd5 {[%clk 0:03:01.3]} 9... Nxd5 {[%clk
0:02:58.1]} 10. Nxe5 {[%clk 0:03:01.8]} 10... Nxe5 {[%clk 0:02:59]} 11. Rxe5
{[%clk 0:03:02.3]} 11... c6 {[%clk 0:02:59.6]} 12. d3 {[%clk 0:03:02.7]} 12...
Bd6 {[%clk 0:02:59.7]} 13. Re1 {[%clk 0:03:02.9]} 13... Qh4 {[%clk 0:02:59.8]}
14. g3 {[%clk 0:03:01]} 14... Qh3 {[%clk 0:03:00.3]} 15. Re4 {[%clk 0:02:51.6]}
15... Qf5 {[%clk 0:03:00.6]} 16. Nd2 {[%clk 0:02:47.3]} 16... Nf6 {[%clk
0:02:59.4]} 17. Re1 {[%clk 0:02:42.7]} 17... Qxd3 {[%clk 0:02:51.7]} 18. Ne4
{[%clk 0:02:27.2]} 18... Qxd1 {[%clk 0:02:48.8]} 19. Nxf6+ {[%clk 0:02:27.5]}
19... gxf6 {[%clk 0:02:49.2]} 20. Rxd1 {[%clk 0:02:28.2]} 20... Bc5 {[%clk
0:02:36]} 21. Be3 {[%clk 0:02:08.2]} 21... Be7 {[%clk 0:01:48]} 22. Rd4 {[%clk
0:01:54.4]} 22... c5 {[%clk 0:01:40.2]} 23. Rh4 {[%clk 0:01:48.9]} 23... Bf5
{[%clk 0:01:35.9]} 24. Re1 {[%clk 0:01:44.5]} 24... Rfe8 {[%clk 0:01:29.2]} 25.
Bd5 {[%clk 0:01:38.8]} 25... Rac8 {[%clk 0:00:56.5]} 26. Bb7 {[%clk 0:01:25.4]}
26... Rb8 {[%clk 0:00:56.7]} 27. Bc6 {[%clk 0:01:23.5]} 27... Rec8 {[%clk
0:00:52]} 28. Be4 {[%clk 0:01:07.2]} 28... Bg6 {[%clk 0:00:49.5]} 29. Bxg6
{[%clk 0:01:04]} 29... hxg6 {[%clk 0:00:48.1]} 30. Bf4 {[%clk 0:01:02.1]} 30...
Rb7 {[%clk 0:00:47.1]} 31. Bc1 {[%clk 0:00:54]} 31... f5 {[%clk 0:00:44.3]} 32.
Rf4 {[%clk 0:00:54]} 32... Bg5 {[%clk 0:00:38.5]} 33. Rf3 {[%clk 0:00:52.8]}
33... Bxc1 {[%clk 0:00:38.2]} 34. Rxc1 {[%clk 0:00:53.7]} 34... Rd7 {[%clk
0:00:28.7]} 35. Rc2 {[%clk 0:00:52.4]} 35... Rd1+ {[%clk 0:00:27.7]} 36. Kg2
{[%clk 0:00:52.3]} 36... Re8 {[%clk 0:00:26.6]} 37. Re3 {[%clk 0:00:51.4]} 37...
Rxe3 {[%clk 0:00:26.5]} 38. fxe3 {[%clk 0:00:51.4]} 38... c4 {[%clk 0:00:20.4]}
39. h4 {[%clk 0:00:50.1]} 39... Kg7 {[%clk 0:00:20.5]} 40. b3 {[%clk 0:00:41.4]}
40... cxb3 {[%clk 0:00:14.5]} 41. axb3 {[%clk 0:00:41.3]} 41... Rb1 {[%clk
0:00:15.2]} 42. b4 {[%clk 0:00:30.8]} 42... Ra1 {[%clk 0:00:15.5]} 43. c4 {[%clk
0:00:30.5]} 43... bxc4 {[%clk 0:00:15.1]} 44. Rxc4 {[%clk 0:00:31.4]} 44... Kf6
{[%clk 0:00:13.5]} 45. Kf3 {[%clk 0:00:25.1]} 45... Rb1 {[%clk 0:00:12.5]} 46.
Rc6+ {[%clk 0:00:24.3]} 46... Ke5 {[%clk 0:00:11.9]} 47. Rxa6 {[%clk 0:00:23.7]}
47... Rxb4 {[%clk 0:00:11.1]} 48. Ra5+ {[%clk 0:00:23.8]} 48... Kf6 {[%clk
0:00:09.6]} 49. Ra6+ {[%clk 0:00:24.1]} 49... Kg7 {[%clk 0:00:10.1]} 50. Ra5
{[%clk 0:00:23.3]} 50... Rb7 {[%clk 0:00:09.7]} 51. Ra6 {[%clk 0:00:23.2]} 51...
Kh6 {[%clk 0:00:09.5]} 52. Ra8 {[%clk 0:00:21.6]} 52... Rb1 {[%clk 0:00:08.4]}
53. Rc8 {[%clk 0:00:18.4]} 53... Kg7 {[%clk 0:00:08.6]} 54. Ra8 {[%clk
0:00:18.2]} 54... Kf6 {[%clk 0:00:08.2]} 55. Ra6+ {[%clk 0:00:17.9]} 55... Kg7
{[%clk 0:00:08.8]} 56. Ra8 {[%clk 0:00:18.5]} 56... Rd1 {[%clk 0:00:09.2]} 57.
Ke2 {[%clk 0:00:17.8]} 57... Rd7 {[%clk 0:00:07.7]} 58. Kf3 {[%clk 0:00:18.7]}
58... Rd6 {[%clk 0:00:08]} 59. Rb8 {[%clk 0:00:18]} 59... Kf6 {[%clk 0:00:08]}
60. Ra8 {[%clk 0:00:18.2]} 60... Ke5 {[%clk 0:00:07.9]} 61. Ra5+ {[%clk
0:00:18]} 61... Kf6 {[%clk 0:00:08.2]} 62. Ra8 {[%clk 0:00:18.6]} 62... Rd1
{[%clk 0:00:08.2]} 63. Ra6+ {[%clk 0:00:18.6]} 63... Kg7 {[%clk 0:00:08.5]} 64.
Ra8 {[%clk 0:00:19.2]} 64... Rd6 {[%clk 0:00:08.6]} 65. Ra7 {[%clk 0:00:19.2]}
65... Rb6 {[%clk 0:00:08.9]} 66. Ra8 {[%clk 0:00:19.4]} 66... f6 {[%clk
0:00:08.5]} 67. Ra7+ {[%clk 0:00:16.8]} 67... Kh6 {[%clk 0:00:09]} 68. Rf7
{[%clk 0:00:16.4]} 68... Rc6 {[%clk 0:00:06.4]} 69. Kf4 {[%clk 0:00:16]} 69...
Rb6 {[%clk 0:00:05.4]} 70. Kf3 {[%clk 0:00:16.5]} 70... Ra6 {[%clk 0:00:05.2]}
71. Kf4 {[%clk 0:00:16.1]} 71... Rb6 {[%clk 0:00:03.8]} 72. Kf3 {[%clk 0:00:13]}
1/2-1/2

[Event "*** Titled Tuesday Blitz"]
[Site "Chess.com"]
[Date "2020.12.29"]
[Round "10"]
[White "VladaSviridova"]
[Black "XiaoKangZhong"]
[Result "1-0"]
[WhiteElo "2266"]
[BlackElo "2393"]
[TimeControl "180+1"]
[EndTime "11:56:46 PST"]
[Termination "VladaSviridova won by resignation"]

1. d4 {[%clk 0:03:00.9]} 1... Nf6 {[%clk 0:02:57.3]} 2. c4 {[%clk 0:03:00.5]}
2... g6 {[%clk 0:02:50.8]} 3. Nc3 {[%clk 0:03:00.1]} 3... d5 {[%clk 0:02:50.3]}
4. cxd5 {[%clk 0:03:00.1]} 4... Nxd5 {[%clk 0:02:51.2]} 5. e4 {[%clk 0:03:00.6]}
5... Nxc3 {[%clk 0:02:51.6]} 6. bxc3 {[%clk 0:03:01.3]} 6... Bg7 {[%clk
0:02:52.3]} 7. Bc4 {[%clk 0:03:01.8]} 7... O-O {[%clk 0:02:51.7]} 8. Ne2 {[%clk
0:03:02.4]} 8... c5 {[%clk 0:02:52.3]} 9. O-O {[%clk 0:03:02.7]} 9... Nc6 {[%clk
0:02:53]} 10. Be3 {[%clk 0:03:03.3]} 10... Qc7 {[%clk 0:02:50.2]} 11. Rc1 {[%clk
0:03:02.4]} 11... b6 {[%clk 0:02:50.3]} 12. Qd2 {[%clk 0:02:58.6]} 12... e6
{[%clk 0:02:47]} 13. Rfd1 {[%clk 0:02:58.5]} 13... Na5 {[%clk 0:02:38.5]} 14.
Bd3 {[%clk 0:02:58.2]} 14... c4 {[%clk 0:02:35.5]} 15. Bc2 {[%clk 0:02:57.1]}
15... Bb7 {[%clk 0:02:33.1]} 16. Bh6 {[%clk 0:02:55.7]} 16... f5 {[%clk
0:02:28.8]} 17. Bxg7 {[%clk 0:02:52.3]} 17... Kxg7 {[%clk 0:02:29.7]} 18. e5
{[%clk 0:02:49.8]} 18... Bd5 {[%clk 0:02:07.9]} 19. Nf4 {[%clk 0:02:47.9]} 19...
Rfd8 {[%clk 0:02:02.7]} 20. Qe3 {[%clk 0:02:42.7]} 20... Nc6 {[%clk 0:02:01.4]}
21. Qg3 {[%clk 0:02:39.4]} 21... Kh8 {[%clk 0:01:51.4]} 22. a4 {[%clk
0:02:31.3]} 22... a6 {[%clk 0:01:42.3]} 23. Rb1 {[%clk 0:02:30.4]} 23... Rab8
{[%clk 0:01:42.5]} 24. Qh4 {[%clk 0:01:54.4]} 24... Kg8 {[%clk 0:01:32.6]} 25.
Qg5 {[%clk 0:01:32.8]} 25... Qe7 {[%clk 0:01:24.2]} 26. Qh6 {[%clk 0:01:28.8]}
26... Qg7 {[%clk 0:01:11.9]} 27. Qxg7+ {[%clk 0:01:25.6]} 27... Kxg7 {[%clk
0:01:12.2]} 28. f3 {[%clk 0:01:25.9]} 28... Rd7 {[%clk 0:01:08.5]} 29. Kf2
{[%clk 0:01:25.6]} 29... b5 {[%clk 0:01:08.4]} 30. axb5 {[%clk 0:01:23.7]} 30...
axb5 {[%clk 0:01:08.7]} 31. h4 {[%clk 0:01:19.9]} 31... h6 {[%clk 0:01:08.6]}
32. Ke3 {[%clk 0:01:19.4]} 32... Ne7 {[%clk 0:01:01.4]} 33. g4 {[%clk
0:01:16.4]} 33... Kf7 {[%clk 0:00:44]} 34. gxf5 {[%clk 0:01:06.7]} 34... exf5
{[%clk 0:00:40.8]} 35. h5 {[%clk 0:00:55.9]} 35... g5 {[%clk 0:00:40.3]} 36. Ne2
{[%clk 0:00:43.5]} 36... Be6 {[%clk 0:00:36.7]} 37. f4 {[%clk 0:00:43]} 37...
Nd5+ {[%clk 0:00:35.7]} 38. Kf3 {[%clk 0:00:43]} 38... g4+ {[%clk 0:00:35.4]}
39. Kg3 {[%clk 0:00:42.2]} 39... Ne3 {[%clk 0:00:35.5]} 40. Rdc1 {[%clk
0:00:40.6]} 40... Ra7 {[%clk 0:00:32.9]} 41. Kf2 {[%clk 0:00:35.8]} 41... Nxc2
{[%clk 0:00:27.7]} 42. Rxc2 {[%clk 0:00:35.7]} 42... Ra3 {[%clk 0:00:27.9]} 43.
Rcb2 {[%clk 0:00:35.3]} 43... Ra5 {[%clk 0:00:26.3]} 44. Ke3 {[%clk 0:00:34.6]}
44... Bd5 {[%clk 0:00:25.8]} 45. Ng3 {[%clk 0:00:32.2]} 45... Ke6 {[%clk
0:00:26]} 46. Rb4 {[%clk 0:00:26.4]} 46... Bc6 {[%clk 0:00:25.9]} 47. R1b2
{[%clk 0:00:21]} 47... Rba8 {[%clk 0:00:24.3]} 48. Kd2 {[%clk 0:00:20]} 48...
Ra1 {[%clk 0:00:23.6]} 49. d5+ {[%clk 0:00:19.2]} 49... Kxd5 {[%clk 0:00:23.2]}
50. Nxf5 {[%clk 0:00:18.8]} 50... Ke4 {[%clk 0:00:20]} 51. Ne7 {[%clk
0:00:18.9]} 51... Bd7 {[%clk 0:00:19.6]} 52. Ke2 {[%clk 0:00:17.1]} 52... Kxf4
{[%clk 0:00:19.4]} 53. Ng6+ {[%clk 0:00:16.8]} 53... Ke4 {[%clk 0:00:19]} 54.
Kf2 {[%clk 0:00:16.6]} 54... Rc1 {[%clk 0:00:17.6]} 55. Re2+ {[%clk 0:00:16.5]}
55... Kf5 {[%clk 0:00:17.9]} 56. Nh4+ {[%clk 0:00:15.8]} 56... Ke6 {[%clk
0:00:18.2]} 57. Re3 {[%clk 0:00:13.7]} 57... Rf8+ {[%clk 0:00:17.3]} 58. Kg3
{[%clk 0:00:13.3]} 58... Rg1+ {[%clk 0:00:14.6]} 59. Kh2 {[%clk 0:00:12.5]}
59... Rgf1 {[%clk 0:00:13.4]} 60. Rb2 {[%clk 0:00:11.9]} 60... R8f2+ {[%clk
0:00:12.2]} 61. Rxf2 {[%clk 0:00:11.9]} 61... Rxf2+ {[%clk 0:00:13.1]} 62. Kg3
{[%clk 0:00:11.9]} 62... Rd2 {[%clk 0:00:13.2]} 63. Ng6 {[%clk 0:00:11.4]} 63...
Rd3 {[%clk 0:00:13.1]} 64. Nf4+ {[%clk 0:00:11.2]} 64... Kf5 {[%clk 0:00:13.4]}
65. Nxd3 {[%clk 0:00:11.8]} 65... cxd3 {[%clk 0:00:13.9]} 66. Rxd3 {[%clk
0:00:12.2]} 66... Be6 {[%clk 0:00:14.4]} 67. Rd6 {[%clk 0:00:11.6]} 67... Kxe5
{[%clk 0:00:14.5]} 68. Rb6 {[%clk 0:00:11.7]} 68... Bc4 {[%clk 0:00:14.8]} 69.
Rxh6 {[%clk 0:00:11.5]} 69... Kf5 {[%clk 0:00:15.5]} 70. Rb6 {[%clk 0:00:11.4]}
70... Kg5 {[%clk 0:00:15.8]} 71. h6 {[%clk 0:00:11.8]} 71... Bd3 {[%clk
0:00:15.4]} 72. Kg2 {[%clk 0:00:11.4]} 72... Kh5 {[%clk 0:00:15.3]} 73. Kf2
{[%clk 0:00:11.5]} 73... Kh4 {[%clk 0:00:14.7]} 74. Rd6 {[%clk 0:00:10.3]} 74...
Bc2 {[%clk 0:00:14.2]} 75. Rd5 {[%clk 0:00:10]} 75... g3+ {[%clk 0:00:11.2]} 76.
Kg1 {[%clk 0:00:09.6]} 76... Kg4 {[%clk 0:00:10.4]} 77. Rxb5 {[%clk 0:00:09.6]}
77... Kf4 {[%clk 0:00:10.7]} 78. Ra5 {[%clk 0:00:09.1]} 78... Kg4 {[%clk
0:00:10.7]} 79. c4 {[%clk 0:00:09.4]} 79... Bd3 {[%clk 0:00:10.5]} 80. c5 {[%clk
0:00:08.8]} 80... Kg5 {[%clk 0:00:10.9]} 81. c6+ {[%clk 0:00:08.1]} 81... Kg6
{[%clk 0:00:11.5]} 82. c7 {[%clk 0:00:08.3]} 1-0

[Event "*** Titled Tuesday Blitz"]
[Site "Chess.com"]
[Date "2020.12.29"]
[Round "10"]
[White "peixe64"]
[Black "Cambek64"]
[Result "0-1"]
[WhiteElo "2438"]
[BlackElo "2334"]
[TimeControl "180+1"]
[EndTime "11:56:47 PST"]
[Termination "Cambek64 won by checkmate"]

1. e4 {[%clk 0:03:00.9]} 1... e6 {[%clk 0:02:51.5]} 2. d4 {[%clk 0:03:00.9]}
2... d5 {[%clk 0:02:52.1]} 3. Nc3 {[%clk 0:03:01.2]} 3... Nc6 {[%clk 0:02:52.1]}
4. Nf3 {[%clk 0:02:50.9]} 4... Nf6 {[%clk 0:02:49.9]} 5. exd5 {[%clk 0:02:41.4]}
5... exd5 {[%clk 0:02:48.6]} 6. Bb5 {[%clk 0:02:41.8]} 6... Bd7 {[%clk
0:02:47.4]} 7. O-O {[%clk 0:02:41.6]} 7... Be7 {[%clk 0:02:47.2]} 8. Re1 {[%clk
0:02:36]} 8... O-O {[%clk 0:02:47.2]} 9. Bg5 {[%clk 0:02:34.1]} 9... Bg4 {[%clk
0:02:42.4]} 10. Bxc6 {[%clk 0:02:28.1]} 10... bxc6 {[%clk 0:02:41.4]} 11. h3
{[%clk 0:02:27.2]} 11... Bxf3 {[%clk 0:02:39.4]} 12. Qxf3 {[%clk 0:02:28.1]}
12... Re8 {[%clk 0:02:31.7]} 13. b3 {[%clk 0:02:15.9]} 13... h6 {[%clk
0:02:29.6]} 14. Bh4 {[%clk 0:02:12.8]} 14... Nh7 {[%clk 0:02:23.7]} 15. Bg3
{[%clk 0:01:58.6]} 15... Bd6 {[%clk 0:02:21.9]} 16. Na4 {[%clk 0:01:51.7]} 16...
Ng5 {[%clk 0:02:17.6]} 17. Qd3 {[%clk 0:01:49.4]} 17... Qd7 {[%clk 0:02:08.7]}
18. c4 {[%clk 0:01:42.7]} 18... Rxe1+ {[%clk 0:01:47.2]} 19. Rxe1 {[%clk
0:01:41.4]} 19... Re8 {[%clk 0:01:46.1]} 20. Re3 {[%clk 0:01:25.6]} 20... Bxg3
{[%clk 0:01:36.6]} 21. fxg3 {[%clk 0:01:21.1]} 21... Rxe3 {[%clk 0:01:33.6]} 22.
Qxe3 {[%clk 0:01:20.7]} 22... Ne4 {[%clk 0:01:33.3]} 23. Kh2 {[%clk 0:01:08.4]}
23... f5 {[%clk 0:01:26.3]} 24. Nc3 {[%clk 0:01:04.9]} 24... Qd6 {[%clk
0:01:17.7]} 25. c5 {[%clk 0:00:51.7]} 25... Qf6 {[%clk 0:01:06.3]} 26. Ne2
{[%clk 0:00:50.7]} 26... g5 {[%clk 0:01:02.5]} 27. Qd3 {[%clk 0:00:45.7]} 27...
Kg7 {[%clk 0:00:53.9]} 28. Qa6 {[%clk 0:00:41.7]} 28... f4 {[%clk 0:00:52.7]}
29. gxf4 {[%clk 0:00:41.5]} 29... gxf4 {[%clk 0:00:53.2]} 30. Qd3 {[%clk
0:00:39.3]} 30... Ng5 {[%clk 0:00:42.9]} 31. Ng1 {[%clk 0:00:32.6]} 31... Qg6
{[%clk 0:00:38.7]} 32. Qxg6+ {[%clk 0:00:28.9]} 32... Kxg6 {[%clk 0:00:37.7]}
33. h4 {[%clk 0:00:28.7]} 33... Ne6 {[%clk 0:00:34.9]} 34. Nf3 {[%clk
0:00:28.8]} 34... Kf5 {[%clk 0:00:34.4]} 35. Kh3 {[%clk 0:00:24.3]} 35... h5
{[%clk 0:00:31.3]} 36. Ne5 {[%clk 0:00:11.2]} 36... Nxd4 {[%clk 0:00:29.8]} 37.
Nf7 {[%clk 0:00:10.4]} 37... Ne6 {[%clk 0:00:26.1]} 38. Kh2 {[%clk 0:00:06]}
38... d4 {[%clk 0:00:22.5]} 39. Kg1 {[%clk 0:00:06.4]} 39... Ke4 {[%clk
0:00:20.6]} 40. Kf2 {[%clk 0:00:06.9]} 40... Nxc5 {[%clk 0:00:18.9]} 41. Ke2
{[%clk 0:00:06.5]} 41... Nd7 {[%clk 0:00:14.4]} 42. Nd8 {[%clk 0:00:04.9]} 42...
c5 {[%clk 0:00:13.1]} 43. Nc6 {[%clk 0:00:05.6]} 43... Ne5 {[%clk 0:00:12.1]}
44. Nxa7 {[%clk 0:00:05.3]} 44... c4 {[%clk 0:00:11.1]} 45. bxc4 {[%clk
0:00:05.3]} 45... Nxc4 {[%clk 0:00:11.7]} 46. Nb5 {[%clk 0:00:05.6]} 46... c5
{[%clk 0:00:11.8]} 47. a4 {[%clk 0:00:05.5]} 47... Na5 {[%clk 0:00:11.5]} 48.
Nd6+ {[%clk 0:00:05.4]} 48... Kd5 {[%clk 0:00:10.5]} 49. Nf7 {[%clk 0:00:05.6]}
49... c4 {[%clk 0:00:10.3]} 50. Kd2 {[%clk 0:00:05.8]} 50... c3+ {[%clk
0:00:09.1]} 51. Kd3 {[%clk 0:00:05.5]} 51... Nb3 {[%clk 0:00:09.5]} 52. Ng5
{[%clk 0:00:04.9]} 52... Nc5+ {[%clk 0:00:09.1]} 53. Kc2 {[%clk 0:00:05.3]}
53... Nxa4 {[%clk 0:00:09.1]} 54. Nf3 {[%clk 0:00:05.3]} 54... Nc5 {[%clk
0:00:07.6]} 55. Ne1 {[%clk 0:00:05.7]} 55... Kc4 {[%clk 0:00:07.7]} 56. Kd1
{[%clk 0:00:03.3]} 56... d3 {[%clk 0:00:08.2]} 57. Nf3 {[%clk 0:00:03.3]} 57...
Nb3 {[%clk 0:00:08]} 58. Ne1 {[%clk 0:00:02.9]} 58... c2+ {[%clk 0:00:06.8]} 59.
Nxc2 {[%clk 0:00:02.6]} 59... dxc2+ {[%clk 0:00:06.9]} 60. Kxc2 {[%clk
0:00:03.5]} 60... Kd4 {[%clk 0:00:06.5]} 61. Kxb3 {[%clk 0:00:02.7]} 61... Ke3
{[%clk 0:00:07]} 62. Kc4 {[%clk 0:00:03.2]} 62... Kf2 {[%clk 0:00:07.6]} 63. Kd3
{[%clk 0:00:03.8]} 63... Kxg2 {[%clk 0:00:08.2]} 64. Ke4 {[%clk 0:00:03.9]}
64... f3 {[%clk 0:00:08.8]} 65. Kf4 {[%clk 0:00:04.8]} 65... f2 {[%clk
0:00:09.5]} 66. Kg5 {[%clk 0:00:05.7]} 66... f1=Q {[%clk 0:00:09.6]} 67. Kxh5
{[%clk 0:00:06.6]} 67... Qf8 {[%clk 0:00:09.4]} 68. Kg6 {[%clk 0:00:07.5]} 68...
Qh8 {[%clk 0:00:09.7]} 69. h5 {[%clk 0:00:08.4]} 69... Kg3 {[%clk 0:00:10]} 70.
h6 {[%clk 0:00:09.3]} 70... Kg4 {[%clk 0:00:10.4]} 71. h7 {[%clk 0:00:10.2]}
71... Kf4 {[%clk 0:00:10.4]} 72. Kh6 {[%clk 0:00:11.1]} 72... Kf5 {[%clk
0:00:10.4]} 73. Kh5 {[%clk 0:00:10.5]} 73... Qxh7# {[%clk 0:00:10.8]} 0-1